bitfinex/quotes_BTCUSD_20250602
["timestamp","ask_amount","ask_price","bid_price","bid_amount"]
[1748849730043,0.68645222,105250.0,105240.0,0.00813812]
[1748849730251,0.78230652,105250.0,105240.0,0.00813812]
[1748849730457,0.87481774,105250.0,105240.0,0.00813812]
[1748849730670,0.88146188,105250.0,105240.0,0.00013812]
[1748849730950,0.88146188,105250.0,105240.0,0.00213812]
[1748849731168,0.78895066,105250.0,105240.0,0.00113812]
[1748849731382,0.78895066,105250.0,105240.0,0.00013812]
[1748849731590,0.79559474,105250.0,105240.0,0.00013812]
[1748849733533,0.77969474,105250.0,105240.0,0.00013812]
[1748849734599,1.07353474,105250.0,105240.0,0.00013812]
[1748849737560,1.12308553,105250.0,105240.0,0.00013812]
[1748849737768,1.07353474,105250.0,105240.0,0.00013812]
[1748849738663,1.07393474,105250.0,105240.0,0.00013812]
[1748849739085,0.77997474,105250.0,105240.0,0.00013812]
[1748849739306,1.07401474,105250.0,105240.0,0.00013812]
[1748849740166,0.68905474,105250.0,105240.0,0.00013812]
[1748849740378,1.07389474,105250.0,105240.0,0.00013812]
[1748849741504,1.07381474,105250.0,105240.0,0.00013812]
[1748849743131,1.09947524,105250.0,105240.0,0.00013812]
[1748849743352,1.07381474,105250.0,105240.0,0.00013812]
[1748849746087,1.09031474,105250.0,105240.0,0.00013812]
[1748849746510,1.07381474,105250.0,105240.0,0.00013812]
[1748849748059,1.07381474,105250.0,105240.0,0.00902978]
[1748849748244,1.07381474,105250.0,105240.0,0.00013812]
[1748849748482,1.07381474,105250.0,105240.0,0.00902979]
[1748849748689,1.07381474,105250.0,105240.0,0.00013812]
[1748849748893,1.08886129,105250.0,105240.0,0.00013812]
[1748849749100,1.08886129,105250.0,105240.0,0.00902979]
[1748849749488,1.07381474,105250.0,105240.0,0.00902979]
[1748849749687,1.07381474,105250.0,105240.0,0.00903037]
[1748849749919,1.07381474,105250.0,105240.0,0.00013812]
[1748849750348,1.07381474,105250.0,105240.0,0.00903037]
[1748849750573,1.07381474,105250.0,105240.0,0.00013812]
[1748849751266,0.1995437,105240.0,105230.0,0.01791875]
[1748849751468,0.1995437,105240.0,105230.0,0.02694917]
[1748849751881,0.1995437,105240.0,105230.0,0.01805692]
[1748849752316,0.1995437,105240.0,105230.0,0.02694917]
[1748849752735,0.1995437,105240.0,105230.0,0.01805692]
[1748849752943,0.1995437,105240.0,105230.0,0.02794917]
[1748849753351,0.1995437,105240.0,105230.0,0.02894983]
[1748849753640,0.1995437,105240.0,105230.0,0.02005692]
[1748849753857,0.1995437,105240.0,105230.0,0.02894983]
[1748849754073,0.1995437,105240.0,105230.0,0.02005692]
[1748849755128,0.2152437,105240.0,105230.0,0.02005692]
[1748849755345,0.2152437,105240.0,105230.0,0.02894983]
[1748849755556,0.6012837,105240.0,105230.0,0.02005692]
[1748849755768,0.6012837,105240.0,105230.0,0.02896132]
[1748849755978,0.6012837,105240.0,105230.0,0.02005692]
[1748849756518,0.6012837,105240.0,105230.0,0.02896133]
[1748849756748,0.6012837,105240.0,105230.0,0.02005692]
[1748849757171,0.2152437,105240.0,105230.0,0.02005692]
[1748849757380,0.6017237,105240.0,105230.0,0.02896135]
[1748849757623,0.6017237,105240.0,105230.0,0.02005692]
[1748849758471,0.5860237,105240.0,105230.0,0.02005692]
[1748849758689,0.1995437,105240.0,105230.0,0.02005692]
[1748849758904,0.5859437,105240.0,105230.0,0.04516135]
[1748849759115,0.5622595,105250.0,105240.0,0.19954389]
[1748849759329,0.9486995,105250.0,105240.0,0.03554063]
[1748849760181,0.9486995,105250.0,105240.0,0.04444436]
[1748849760398,0.38173693,105250.0,105240.0,0.25408778]
[1748849760608,0.57176068,105250.0,105240.0,0.24458615]
[1748849760812,0.57176068,105250.0,105240.0,0.23508413]
[1748849761016,0.57176068,105250.0,105240.0,0.25408775]
[1748849761226,0.57176068,105250.0,105240.0,0.24458603]
[1748849761441,0.57176068,105250.0,105240.0,0.25348928]
[1748849761646,0.57176068,105250.0,105240.0,0.2724928]
[1748849761857,0.57176068,105250.0,105240.0,0.26358956]
[1748849762081,0.57176068,105250.0,105240.0,0.25348927]
[1748849762288,0.56225977,105250.0,105240.0,0.24398737]
[1748849762920,0.56225977,105250.0,105240.0,0.23508413]
[1748849763723,0.56225977,105250.0,105240.0,0.23508409]
[1748849764326,0.56225977,105250.0,105240.0,0.24398744]
[1748849764536,0.56225977,105250.0,105240.0,0.04444363]
[1748849764760,0.56225977,105250.0,105240.0,0.04504229]
[1748849765170,0.56225977,105250.0,105240.0,0.05394562]
[1748849765693,0.56225977,105250.0,105240.0,0.03554029]
[1748849765905,0.55275859,105250.0,105240.0,0.01934029]
[1748849766272,0.55275859,105250.0,105240.0,0.02824367]
[1748849766471,0.55275859,105250.0,105240.0,0.01934029]
[1748849767085,0.55275859,105250.0,105240.0,0.04424238]
[1748849767497,0.55275859,105250.0,105240.0,0.03474029]
[1748849767676,0.55275859,105250.0,105240.0,0.01934029]
[1748849767878,0.55275859,105250.0,105240.0,0.02824367]
[1748849768086,0.55275859,105250.0,105240.0,0.02824368]
[1748849768289,0.55275859,105250.0,105240.0,0.03774577]
[1748849768532,0.55275859,105250.0,105240.0,0.02824368]
[1748849768733,0.55275859,105250.0,105240.0,0.03714684]
[1748849768939,0.55275859,105250.0,105240.0,0.02824368]
[1748849770969,0.55275859,105250.0,105240.0,0.05374664]
[1748849771395,0.55275859,105250.0,105240.0,0.04484368]
[1748849771605,0.54331197,105250.0,105240.0,0.04484368]
[1748849772059,0.54331197,105250.0,105240.0,0.05434568]
[1748849772306,0.54331197,105250.0,105240.0,0.24438748]
[1748849772660,0.5718147,105250.0,105240.0,0.27289272]
[1748849772769,0.57181452,105250.0,105240.0,0.28179967]
[1748849772971,0.57181452,105250.0,105240.0,0.28239453]
[1748849775254,0.57181452,105250.0,105240.0,0.29130127]
[1748849776312,0.57181452,105250.0,105240.0,0.29127939]
[1748849776749,0.57181452,105250.0,105240.0,0.28239407]
[1748849777174,0.57181452,105250.0,105240.0,0.29127893]
[1748849777368,0.57181452,105250.0,105240.0,0.28239407]
[1748849777997,0.38179077,105250.0,105240.0,0.29127893]
[1748849778229,0.39129186,105250.0,105240.0,0.28239362]
[1748849778987,0.37228923,105250.0,105240.0,0.29127848]
[1748849779207,0.39129114,105250.0,105240.0,0.29127833]
[1748849779417,0.39129114,105250.0,105240.0,0.28239362]
[1748849780269,0.40079223,105250.0,105240.0,0.28239362]
[1748849780705,0.40079223,105250.0,105240.0,0.29127331]
[1748849780935,0.40079223,105250.0,105240.0,0.28239362]
[1748849781405,0.59081679,105250.0,105240.0,0.26339063]
[1748849781654,0.39129186,105250.0,105240.0,0.28239362]
[1748849782739,0.39129186,105250.0,105240.0,0.27289217]
[1748849782969,0.58131615,105250.0,105240.0,0.23728937]
[1748849783150,0.58131615,105250.0,105240.0,0.246791]
[1748849783564,0.56231424,105250.0,105240.0,0.23669405]
[1748849783783,0.56231424,105250.0,105240.0,0.22778737]
[1748849784814,0.56231424,105250.0,105240.0,0.23728918]
[1748849785018,0.55281315,105250.0,105240.0,0.22778737]
[1748849785239,0.55281315,105250.0,105240.0,0.22474708]
[1748849785464,0.55281315,105250.0,105240.0,0.23669394]
[1748849785837,0.55281315,105250.0,105240.0,0.22778723]
[1748849786043,0.55281315,105250.0,105240.0,0.25510291]
[1748849786249,0.55281315,105250.0,105240.0,0.27410626]
[1748849788552,0.55281315,105250.0,105240.0,0.28301111]
[1748849789186,0.55281315,105250.0,105240.0,0.27350948]
[1748849789620,0.55281315,105250.0,105240.0,0.26460472]
[1748849789825,0.55281315,105250.0,105240.0,0.27350956]
[1748849790455,0.55281315,105250.0,105240.0,0.27350901]
[1748849790769,0.55281315,105250.0,105240.0,0.27350915]
[1748849790969,0.55281315,105250.0,105240.0,0.26460472]
[1748849791173,0.55281315,105250.0,105240.0,0.27350915]
[1748849791398,0.55281315,105250.0,105240.0,0.05496195]
[1748849791679,0.56881315,105250.0,105240.0,0.03866195]
[1748849792305,0.56881315,105250.0,105240.0,0.04585749]
[1748849792514,0.56881315,105250.0,105240.0,0.05535958]
[1748849792721,0.56881315,105250.0,105240.0,0.06426408]
[1748849793156,0.56881315,105250.0,105240.0,0.05535958]
[1748849793366,0.55931197,105250.0,105240.0,0.06426392]
[1748849793771,0.55931197,105250.0,105240.0,0.05476183]
[1748849793981,0.55931197,105250.0,105240.0,0.03866186]
[1748849794187,0.55931197,105250.0,105240.0,0.04816405]
[1748849794611,0.55931197,105250.0,105240.0,0.25410341]
[1748849795017,0.55931197,105250.0,105240.0,0.26300766]
[1748849795467,0.37228995,105250.0,105240.0,0.29831079]
[1748849795687,0.39129168,105250.0,105240.0,0.29831079]
[1748849795916,0.40079286,105250.0,105240.0,0.29831079]
[1748849796123,0.40079286,105250.0,105240.0,0.28880843]
[1748849796325,0.40079286,105250.0,105240.0,0.29830991]
[1748849796766,0.39129222,105250.0,105240.0,0.29830901]
[1748849796973,0.39129222,105250.0,105240.0,0.298309]
[1748849797179,0.39129222,105250.0,105240.0,0.29830901]
[1748849797389,0.39129222,105250.0,105240.0,0.30781055]
[1748849797600,0.39129222,105250.0,105240.0,0.30780998]
[1748849798073,0.37228941,105250.0,105240.0,0.29890766]
[1748849798276,0.37228941,105250.0,105240.0,0.30476967]
[1748849798488,0.38179032,105250.0,105240.0,0.29890756]
[1748849798700,0.38179032,105250.0,105240.0,0.30780982]
[1748849798909,0.38179023,105250.0,105240.0,0.29890756]
[1748849800132,0.37228941,105250.0,105240.0,0.29890756]
[1748849800366,0.38179023,105250.0,105240.0,0.29890756]
[1748849800703,0.39129114,105250.0,105240.0,0.29890756]
[1748849801221,0.38179023,105250.0,105240.0,0.29890756]
[1748849802943,0.37228932,105250.0,105240.0,0.3078091]
[1748849803619,0.37228932,105250.0,105240.0,0.29890756]
[1748849804257,0.35328822,105250.0,105240.0,0.29890756]
[1748849804481,0.35328822,105250.0,105240.0,0.79561073]
[1748849804482,0.01328822,105250.0,105240.0,0.79561073]
[1748849804696,0.01328822,105250.0,105240.0,0.81895367]
[1748849804900,0.01328822,105250.0,105240.0,0.81895351]
[1748849805315,0.0129586,105250.0,105240.0,0.82562185]
[1748849805538,0.0129586,105250.0,105240.0,0.82561336]
[1748849805945,0.0129586,105250.0,105240.0,0.82561283]
[1748849806152,0.0129586,105250.0,105240.0,0.81602263]
[1748849806353,0.0129586,105250.0,105240.0,0.81116868]
[1748849807165,0.0129586,105250.0,105240.0,0.40727964]
[1748849807386,0.0129586,105250.0,105240.0,0.40727479]
[1748849807569,0.0129586,105250.0,105240.0,0.41396631]
[1748849808011,0.0129586,105250.0,105240.0,0.41031469]
[1748849808500,0.0129586,105250.0,105240.0,0.41396626]
[1748849808739,0.0129586,105250.0,105240.0,0.4072739]
[1748849809151,0.0129586,105250.0,105240.0,0.40060797]
[1748849809352,0.0129586,105250.0,105240.0,0.39172169]
[1748849809559,0.0129586,105250.0,105240.0,0.40060797]
[1748849809757,0.0129586,105250.0,105240.0,0.39172169]
[1748849810292,0.0129586,105250.0,105240.0,0.39537313]
[1748849810486,0.0129586,105250.0,105240.0,0.39841301]
[1748849810767,0.0129586,105250.0,105240.0,1.19280137]
[1748849810999,0.0129586,105250.0,105240.0,1.20068367]
[1748849811161,0.0129586,105250.0,105240.0,1.21035513]
[1748849811369,0.0129586,105250.0,105240.0,1.21701391]
[1748849811569,0.0129586,105250.0,105240.0,1.21701408]
[1748849811751,0.36845844,105280.0,105270.0,0.25038471]
[1748849811950,0.36845844,105280.0,105270.0,0.34927889]
[1748849812164,0.37795655,105280.0,105270.0,0.34927889]
[1748849812376,0.36845844,105280.0,105270.0,0.34927889]
[1748849812792,0.36845844,105280.0,105270.0,0.35593953]
[1748849812989,0.36845853,105280.0,105270.0,0.34941706]
[1748849813406,0.37145853,105280.0,105270.0,0.34941706]
[1748849814337,0.37445853,105280.0,105270.0,0.34941706]
[1748849814580,0.37445853,105280.0,105270.0,0.34941637]
[1748849814987,0.38395682,105280.0,105270.0,0.34941637]
[1748849815220,0.37445853,105280.0,105270.0,0.34941637]
[1748849815603,0.38395664,105280.0,105270.0,0.34941637]
[1748849815847,0.37445853,105280.0,105270.0,0.34941637]
[1748849816265,0.37445853,105280.0,105270.0,0.35607662]
[1748849816473,0.37445853,105280.0,105270.0,0.34941637]
[1748849817316,0.37393853,105280.0,105270.0,0.33411637]
[1748849817730,0.38343673,105280.0,105270.0,0.33411637]
[1748849819355,0.39293502,105280.0,105270.0,0.33411637]
[1748849820188,0.39293502,105280.0,105270.0,0.3407763]
[1748849820397,0.39293502,105280.0,105270.0,0.32461762]
[1748849820602,0.39293502,105280.0,105270.0,0.63781521]
[1748849820807,0.38343673,105280.0,105270.0,0.64447493]
[1748849821014,0.39293502,105280.0,105270.0,0.64447493]
[1748849821212,0.39293502,105280.0,105270.0,0.63781521]
[1748849821424,0.38343664,105280.0,105270.0,0.64447496]
[1748849821631,0.39293484,105280.0,105270.0,0.64447497]
[1748849821849,0.39293484,105280.0,105270.0,0.64446534]
[1748849822501,0.40243323,105280.0,105270.0,0.35026534]
[1748849822726,0.40243323,105280.0,105270.0,0.6443449]
[1748849822939,0.40243323,105280.0,105270.0,0.64130572]
[1748849823395,0.39293484,105280.0,105270.0,0.63465602]
[1748849824338,0.35497775,105280.0,105270.0,0.63769522]
[1748849824547,0.35549766,105280.0,105270.0,0.65964128]
[1748849824761,0.36499559,105280.0,105270.0,0.65964085]
[1748849824946,0.3649955,105280.0,105270.0,0.65964075]
[1748849825089,0.35549766,105280.0,105270.0,0.65964075]
[1748849825295,0.35249766,105280.0,105270.0,0.65299522]
[1748849825527,0.343,105280.0,105270.0,0.65299522]
[1748849825703,0.343,105280.0,105270.0,1.05018928]
[1748849825902,0.003,105280.0,105270.0,1.05683475]
[1748849826106,0.37449244,105300.0,105290.0,0.23404319]
[1748849826296,0.39348479,105300.0,105290.0,0.23404319]
[1748849826698,0.40298146,105300.0,105290.0,0.23404319]
[1748849827144,0.39348479,105300.0,105290.0,0.23404319]
[1748849828080,0.40298137,105300.0,105290.0,0.23404319]
[1748849828288,0.40298218,105300.0,105290.0,0.23404337]
[1748849828501,0.57692326,105300.0,105290.0,0.21504904]
[1748849828732,0.58952393,105300.0,105290.0,0.23404337]
[1748849829999,0.58952393,105300.0,105290.0,0.2435404]
[1748849834753,0.58952393,105300.0,105290.0,0.23404337]
[1748849835028,0.39959041,105300.0,105290.0,0.23404337]
[1748849835238,0.38409041,105300.0,105290.0,0.24354031]
[1748849835437,0.36509689,105300.0,105290.0,0.24354031]
[1748849835651,0.38408933,105300.0,105290.0,0.24657911]
[1748849835872,0.37459284,105300.0,105290.0,0.26267911]
[1748849836098,0.37448848,105300.0,105290.0,0.26267911]
[1748849836733,0.38398488,105300.0,105290.0,0.26267911]
[1748849837360,0.39331726,105300.0,105290.0,0.26267911]
[1748849838002,0.38382086,105300.0,105290.0,0.26267911]
[1748849838210,0.36499217,105300.0,105290.0,0.26932954]
[1748849838480,0.37448848,105300.0,105290.0,0.27597997]
[1748849838772,0.36499208,105300.0,105290.0,0.26267903]
[1748849839004,0.006,105300.0,105290.0,0.76237794]
[1748849839474,0.006,105300.0,105290.0,0.36518256]
[1748849839747,0.003,105300.0,105290.0,0.36518255]
[1748849840002,0.005,105300.0,105290.0,0.35853333]
[1748849840460,0.003,105300.0,105290.0,0.35853333]
[1748849840670,0.36848605,105310.0,105300.0,0.24331876]
[1748849840889,0.36848605,105310.0,105300.0,0.26235748]
[1748849840890,0.38729888,105310.0,105300.0,0.26235748]
[1748849841354,0.38729888,105310.0,105300.0,0.24635748]
[1748849841798,0.39029879,105310.0,105300.0,0.24635748]
[1748849841997,0.39979447,105310.0,105300.0,0.24635748]
[1748849842228,0.39029879,105310.0,105300.0,0.24635748]
[1748849842694,0.39029879,105310.0,105300.0,0.54075748]
[1748849843577,0.39329879,105310.0,105300.0,0.54075748]
[1748849844451,0.36481229,105310.0,105300.0,0.54075748]
[1748849844674,0.37430761,105310.0,105300.0,0.54075748]
[1748849845166,0.37430752,105310.0,105300.0,0.54075748]
[1748849845383,0.37430752,105310.0,105300.0,0.54740516]
[1748849845587,0.37430752,105310.0,105300.0,0.54075748]
[1748849845790,0.37430743,105310.0,105300.0,0.54075748]
[1748849847049,0.346,105310.0,105300.0,0.54075748]
[1748849847266,0.006,105310.0,105300.0,1.05030596]
[1748849847507,0.006,105310.0,105300.0,1.05394698]
[1748849848120,0.40371892,105330.0,105320.0,0.23398098]
[1748849848329,0.41321271,105330.0,105320.0,0.23398098]
[1748849849358,0.39739777,105330.0,105320.0,0.23398098]
[1748849850004,0.41389777,105330.0,105320.0,0.23398098]
[1748849850433,0.59428448,105330.0,105320.0,0.0156]
[1748849850642,0.4039721,105320.0,105310.0,0.53110433]
[1748849850915,0.0165,105320.0,105310.0,0.25255572]
[1748849851123,0.00048434,105330.0,105320.0,0.24868098]
[1748849851328,0.00048434,105330.0,105320.0,0.75140104]
[1748849851537,0.00048434,105330.0,105320.0,0.74840853]
[1748849851958,0.00048434,105330.0,105320.0,0.75504176]
[1748849852375,0.00048434,105330.0,105320.0,0.75504178]
[1748849852828,0.00048434,105330.0,105320.0,0.75502901]
[1748849853035,0.00048434,105330.0,105320.0,0.75501084]
[1748849853470,0.00048434,105330.0,105320.0,0.75501338]
[1748849854162,0.00048434,105330.0,105320.0,0.75985343]
[1748849854577,0.00048434,105330.0,105320.0,0.76950634]
[1748849854788,0.00048434,105330.0,105320.0,0.7598525]
[1748849854993,0.00048434,105330.0,105320.0,0.75984529]
[1748849855630,0.00048434,105330.0,105320.0,0.75984521]
[1748849855832,0.00048434,105330.0,105320.0,0.75984518]
[1748849856034,0.00048434,105330.0,105320.0,0.7532363]
[1748849856287,0.00048434,105330.0,105320.0,0.76184322]
[1748849856538,0.00048434,105330.0,105320.0,0.7552363]
[1748849856745,0.00048434,105330.0,105320.0,0.7618432]
[1748849856953,0.00048434,105330.0,105320.0,0.7552363]
[1748849857389,0.00048434,105330.0,105320.0,0.75039625]
[1748849857566,0.00048434,105330.0,105320.0,0.75700315]
[1748849857713,0.00048434,105330.0,105320.0,0.76633715]
[1748849857916,0.00048434,105330.0,105320.0,0.75973025]
[1748849858115,0.00048434,105330.0,105320.0,0.76633715]
[1748849858315,0.00048434,105330.0,105320.0,0.76633699]
[1748849858875,0.00048434,105330.0,105320.0,0.75973025]
[1748849859867,0.00048434,105330.0,105320.0,0.75972217]
[1748849860329,0.00048434,105330.0,105320.0,0.7663289]
[1748849860511,0.00048434,105330.0,105320.0,0.76632887]
[1748849861821,0.00048434,105330.0,105320.0,0.75972217]
[1748849862104,0.00048434,105330.0,105320.0,0.76633322]
[1748849862495,0.00048434,105330.0,105320.0,0.76633323]
[1748849862854,0.00048434,105330.0,105320.0,0.75972217]
[1748849863046,0.00048434,105330.0,105320.0,0.76633465]
[1748849863248,0.00048434,105330.0,105320.0,0.85713464]
[1748849863656,0.00048434,105330.0,105320.0,0.85052217]
[1748849863862,0.00048434,105330.0,105320.0,0.85713464]
[1748849864278,0.00048434,105330.0,105320.0,1.25432868]
[1748849864485,0.00048434,105330.0,105320.0,1.25916873]
[1748849864898,0.00048434,105330.0,105320.0,0.8619749]
[1748849865106,0.00048434,105330.0,105320.0,0.85835353]
[1748849865318,0.00048434,105330.0,105320.0,1.25554771]
[1748849865532,0.00048434,105330.0,105320.0,1.25554753]
[1748849865751,0.00048434,105330.0,105320.0,1.25454753]
[1748849865964,0.00048434,105330.0,105320.0,1.32047643]
[1748849866186,0.00048434,105330.0,105320.0,1.31763591]
[1748849866402,0.00048434,105330.0,105320.0,1.31663591]
[1748849866612,0.00048434,105330.0,105320.0,1.31864189]
[1748849866814,0.00048434,105330.0,105320.0,1.31202413]
[1748849867018,0.00048434,105330.0,105320.0,1.30802413]
[1748849867221,0.00048434,105330.0,105320.0,0.91482995]
[1748849867897,0.00048434,105330.0,105320.0,1.31502413]
[1748849868327,0.00048434,105330.0,105320.0,1.32165551]
[1748849868541,0.00048434,105330.0,105320.0,1.72165552]
[1748849868750,0.00048434,105330.0,105320.0,1.71502413]
[1748849869385,0.00048434,105330.0,105320.0,1.72165552]
[1748849869792,0.00048434,105330.0,105320.0,1.71502376]
[1748849870198,0.00048434,105330.0,105320.0,1.31782958]
[1748849871029,0.00048434,105330.0,105320.0,1.72165515]
[1748849871443,0.00048434,105330.0,105320.0,1.71502376]
[1748849872066,0.00048434,105330.0,105320.0,1.72165515]
[1748849872295,0.00048434,105330.0,105320.0,1.71502376]
[1748849873257,0.04437162,105360.0,105350.0,0.21831877]
[1748849873504,0.04451688,105360.0,105350.0,0.6104899]
[1748849873745,0.39396066,105360.0,105350.0,0.6104899]
[1748849874265,0.40345147,105360.0,105350.0,0.61712127]
[1748849874462,0.40345147,105360.0,105350.0,0.6104899]
[1748849874697,0.39396066,105360.0,105350.0,0.6104899]
[1748849874908,0.39396066,105360.0,105350.0,0.61712127]
[1748849875132,0.40445138,105360.0,105350.0,0.6104899]
[1748849875795,0.40445147,105360.0,105350.0,0.6104899]
[1748849876071,0.40545147,105360.0,105350.0,0.6104899]
[1748849876315,0.40545147,105360.0,105350.0,0.62375264]
[1748849876557,0.42065147,105360.0,105350.0,0.62375264]
[1748849877043,0.42065147,105360.0,105350.0,0.6237517]
[1748849877516,0.39596066,105360.0,105350.0,0.6273754]
[1748849878139,0.39596066,105360.0,105350.0,0.62738834]
[1748849878748,0.39596066,105360.0,105350.0,0.62738831]
[1748849878949,0.39596066,105360.0,105350.0,0.62738678]
[1748849879219,0.40545147,105360.0,105350.0,0.62075202]
[1748849879710,0.40545147,105360.0,105350.0,0.62739382]
[1748849879723,0.40545147,105360.0,105350.0,0.62075202]
[1748849880004,0.40545147,105360.0,105350.0,0.62739375]
[1748849880291,0.40545147,105360.0,105350.0,0.62075202]
[1748849880548,0.41494246,105360.0,105350.0,0.62075202]
[1748849880900,0.40545147,105360.0,105350.0,0.62739296]
[1748849881175,0.40545147,105360.0,105350.0,0.62739643]
[1748849881409,0.40545147,105360.0,105350.0,0.62075549]
[1748849881986,0.40545138,105360.0,105350.0,0.62739643]
[1748849882243,0.40545138,105360.0,105350.0,0.62735643]
[1748849882244,0.41494237,105360.0,105350.0,0.62735643]
[1748849882550,0.41494228,105360.0,105350.0,0.62735643]
[1748849882762,0.41494228,105360.0,105350.0,0.62071549]
[1748849883411,0.59279638,105360.0,105350.0,0.01631071]
[1748849883620,0.40297039,105360.0,105350.0,0.23462999]
[1748849883869,0.61177809,105360.0,105350.0,0.22798715]
[1748849884153,0.41246147,105360.0,105350.0,0.23747868]
[1748849884427,0.41995264,105360.0,105350.0,0.24412116]
[1748849884745,0.42295264,105360.0,105350.0,0.25361287]
[1748849885224,0.42195264,105360.0,105350.0,0.25361287]
[1748849885444,0.42395264,105360.0,105350.0,0.25361287]
[1748849885641,0.42395264,105360.0,105350.0,0.26025523]
[1748849885846,0.42395264,105360.0,105350.0,0.25361287]
[1748849886083,0.42395264,105360.0,105350.0,0.26025523]
[1748849886378,0.42395264,105360.0,105350.0,0.25361287]
[1748849886654,0.42395264,105360.0,105350.0,0.24412134]
[1748849887276,0.41446147,105360.0,105350.0,0.25361287]
[1748849887481,0.39796147,105360.0,105350.0,0.25361287]
[1748849887689,0.40745264,105360.0,105350.0,0.25361287]
[1748849887902,0.39796147,105360.0,105350.0,0.25361287]
[1748849888960,0.39796147,105360.0,105350.0,0.25361285]
[1748849889387,0.42335264,105360.0,105350.0,0.26025559]
[1748849889802,0.42335264,105360.0,105350.0,0.26025557]
[1748849890254,0.42335264,105360.0,105350.0,0.26025632]
[1748849890472,0.42335264,105360.0,105350.0,0.25361285]
[1748849890681,0.42335264,105360.0,105350.0,0.26025646]
[1748849890885,0.42335264,105360.0,105350.0,0.25361287]
[1748849891768,0.42335264,105360.0,105350.0,0.26025629]
[1748849891976,0.42335264,105360.0,105350.0,0.26025717]
[1748849892182,0.42335264,105360.0,105350.0,0.25361287]
[1748849892824,0.4328439,105360.0,105350.0,0.25361287]
[1748849893029,0.42340012,105360.0,105350.0,0.25361287]
[1748849893450,0.42340012,105360.0,105350.0,0.26026213]
[1748849893680,0.42340012,105360.0,105350.0,0.26026257]
[1748849893892,0.42340012,105360.0,105350.0,0.25361287]
[1748849894438,0.60373494,105360.0,105350.0,0.25077122]
[1748849894639,0.60373494,105360.0,105350.0,0.24412134]
[1748849894963,0.59424413,105360.0,105350.0,0.22513801]
[1748849895375,0.59424413,105360.0,105350.0,0.23412972]
[1748849895580,0.59424413,105360.0,105350.0,0.22463801]
[1748849896362,0.59424413,105360.0,105350.0,0.24362134]
[1748849896566,0.39492751,105360.0,105350.0,0.24362134]
[1748849896840,0.39492715,105360.0,105350.0,0.25311287]
[1748849897042,0.37902715,105360.0,105350.0,0.25311287]
[1748849898759,0.3695358,105360.0,105350.0,0.25311287]
[1748849898962,0.3695358,105360.0,105350.0,0.26941287]
[1748849898963,0.3790267,105360.0,105350.0,0.26941287]
[1748849899175,0.36004526,105360.0,105350.0,0.36526717]
[1748849899392,0.00414526,105360.0,105350.0,0.36526717]
[1748849899617,0.00414526,105360.0,105350.0,0.85844745]
[1748849900530,0.00014526,105360.0,105350.0,0.85844745]
[1748849902033,0.00014526,105360.0,105350.0,0.85844515]
[1748849902238,0.00014526,105360.0,105350.0,0.46125097]
[1748849902449,0.00014526,105360.0,105350.0,0.85844515]
[1748849903299,0.00014526,105360.0,105350.0,0.78220021]
[1748849903938,0.00014526,105360.0,105350.0,0.76610021]
[1748849904155,0.00014526,105360.0,105350.0,0.36890603]
[1748849906226,0.00014526,105360.0,105350.0,0.36890491]
[1748849906739,0.00014526,105360.0,105350.0,0.66210491]
[1748849907840,0.00014526,105360.0,105350.0,0.66875472]
[1748849908043,0.00014526,105360.0,105350.0,0.66210491]
[1748849908463,0.00014526,105360.0,105350.0,0.66875472]
[1748849908669,0.00014526,105360.0,105350.0,0.67540453]
[1748849908806,0.00014526,105360.0,105350.0,0.66875472]
[1748849909225,0.00014526,105360.0,105350.0,0.67540359]
[1748849909979,0.00014526,105360.0,105350.0,0.68205246]
[1748849910178,0.00014526,105360.0,105350.0,0.67540359]
[1748849910429,0.00014526,105360.0,105350.0,0.66872884]
[1748849910610,0.00014526,105360.0,105350.0,0.67540293]
[1748849911028,0.00014526,105360.0,105350.0,1.07259711]
[1748849911506,0.00014526,105360.0,105350.0,1.07924369]
[1748849911668,0.00014526,105360.0,105350.0,0.38220293]
[1748849911873,0.01594526,105360.0,105350.0,0.67536293]
[1748849912299,0.01594526,105360.0,105350.0,0.68200955]
[1748849912502,0.01594526,105360.0,105350.0,0.68201812]
[1748849912712,0.01594526,105360.0,105350.0,0.67536293]
[1748849912917,0.00014526,105360.0,105350.0,0.68201812]
[1748849913519,0.00014526,105360.0,105350.0,0.6820029]
[1748849914800,0.00014526,105360.0,105350.0,0.68200241]
[1748849915210,0.00014526,105360.0,105350.0,0.6820052]
[1748849915613,0.00014526,105360.0,105350.0,0.67536244]
[1748849916116,0.00014526,105360.0,105350.0,0.6820052]
[1748849916297,0.00014526,105360.0,105350.0,0.6820051]
[1748849916497,0.00014526,105360.0,105350.0,0.67536244]
[1748849917766,0.00014526,105360.0,105350.0,0.68200507]
[1748849918019,0.00014526,105360.0,105350.0,0.67536244]
[1748849918240,0.00014526,105360.0,105350.0,0.69196244]
[1748849919190,0.00014526,105360.0,105350.0,0.69196306]
[1748849919603,0.00014526,105360.0,105350.0,1.10369809]
[1748849919802,0.00014526,105360.0,105350.0,1.11035372]
[1748849920005,0.00014526,105360.0,105350.0,1.1103535]
[1748849920207,0.00014526,105360.0,105350.0,1.10369809]
[1748849921438,0.00014526,105360.0,105350.0,0.79393809]
[1748849921652,0.00014526,105360.0,105350.0,1.17773809]
[1748849922050,0.00014526,105360.0,105350.0,0.78054391]
[1748849923047,0.00014526,105360.0,105350.0,0.78719931]
[1748849923334,0.00014526,105360.0,105350.0,0.78054391]
[1748849923560,0.00014526,105360.0,105350.0,0.78720027]
[1748849923960,0.00014526,105360.0,105350.0,0.79385568]
[1748849924163,0.00014526,105360.0,105350.0,0.78720027]
[1748849925938,0.00014526,105360.0,105350.0,0.79385573]
[1748849926304,0.00014526,105360.0,105350.0,0.78720027]
[1748849926506,0.00014526,105360.0,105350.0,0.79385571]
[1748849926715,0.00014526,105360.0,105350.0,0.40340027]
[1748849927403,0.00014526,105360.0,105350.0,0.70321571]
[1748849927623,0.00014526,105360.0,105350.0,0.69656027]
[1748849927852,0.00014526,105360.0,105350.0,0.40823268]
[1748849928041,0.00014526,105360.0,105350.0,0.70135509]
[1748849928770,0.00014526,105360.0,105350.0,0.70801053]
[1748849929231,0.00014526,105360.0,105350.0,1.09854927]
[1748849929668,0.00014526,105360.0,105350.0,1.10520471]
[1748849930217,0.00014526,105360.0,105350.0,1.1052038]
[1748849930435,0.00014526,105360.0,105350.0,1.10156288]
[1748849931046,0.00014526,105360.0,105350.0,0.7043687]
[1748849931255,0.00014526,105360.0,105350.0,0.69771417]
[1748849931492,0.01584526,105360.0,105350.0,0.70436848]
[1748849931739,0.01584526,105360.0,105350.0,0.70436849]
[1748849931980,0.01584526,105360.0,105350.0,0.70436848]
[1748849932206,0.01584526,105360.0,105350.0,0.69771417]
[1748849932426,0.01584526,105360.0,105350.0,0.70436848]
[1748849932837,0.00014526,105360.0,105350.0,0.70436834]
[1748849933065,0.00014526,105360.0,105350.0,0.70436796]
[1748849933275,0.00014526,105360.0,105350.0,0.69771416]
[1748849933922,0.00014526,105360.0,105350.0,1.09490834]
[1748849934156,0.00014526,105360.0,105350.0,1.10156202]
[1748849934377,0.00014526,105360.0,105350.0,1.09490834]
[1748849935462,0.00014526,105360.0,105350.0,1.10156201]